[Event "*** Titled Tuesday Blitz"]
[Site "Chess.com"]
[Date "2020.04.14"]
[Round "7"]
[White "Tiqr777"]
[Black "Lupul_Cenusiu"]
[Result "1-0"]
[WhiteElo "2642"]
[BlackElo "2484"]
[TimeControl "180+1"]
[EndTime "11:15:19 PDT"]
[Termination "Tiqr777 won by resignation"]

1. c4 {[%clk 0:03:00.9]} 1... Nf6 {[%clk 0:02:57.2]} 2. Nc3 {[%clk 0:03:01.2]}
2... e6 {[%clk 0:02:56.3]} 3. g3 {[%clk 0:03:01.3]} 3... d5 {[%clk 0:02:56.2]}
4. Bg2 {[%clk 0:03:01.8]} 4... Be7 {[%clk 0:02:56.2]} 5. d4 {[%clk 0:03:00.7]}
5... O-O {[%clk 0:02:54.9]} 6. cxd5 {[%clk 0:03:01]} 6... exd5 {[%clk
0:02:53.4]} 7. Nf3 {[%clk 0:03:01]} 7... c6 {[%clk 0:02:52.9]} 8. O-O {[%clk
0:03:01]} 8... h6 {[%clk 0:02:52.6]} 9. Qc2 {[%clk 0:03:00.1]} 9... Bd6 {[%clk
0:02:47.7]} 10. Bf4 {[%clk 0:02:58.6]} 10... Bxf4 {[%clk 0:02:46.4]} 11. gxf4
{[%clk 0:02:59.2]} 11... Na6 {[%clk 0:02:38.9]} 12. Ne5 {[%clk 0:02:57]} 12...
Nc7 {[%clk 0:02:38.4]} 13. e3 {[%clk 0:02:56.2]} 13... Nfe8 {[%clk 0:02:20.8]}
14. b4 {[%clk 0:02:54.1]} 14... Nd6 {[%clk 0:02:20.4]} 15. a4 {[%clk 0:02:49.9]}
15... Bf5 {[%clk 0:02:19.2]} 16. Qe2 {[%clk 0:02:49.2]} 16... a6 {[%clk
0:02:18.8]} 17. Kh1 {[%clk 0:02:32.9]} 17... Qh4 {[%clk 0:02:10.5]} 18. Rg1
{[%clk 0:02:20.8]} 18... Rae8 {[%clk 0:02:00.4]} 19. Nf3 {[%clk 0:02:18.7]}
19... Qh5 {[%clk 0:01:59]} 20. Nd2 {[%clk 0:02:16.8]} 20... Qxe2 {[%clk
0:01:53.9]} 21. Nxe2 {[%clk 0:02:17.3]} 21... Ne4 {[%clk 0:01:44.2]} 22. Nxe4
{[%clk 0:02:16]} 22... Bxe4 {[%clk 0:01:44.2]} 23. Bxe4 {[%clk 0:02:13.7]} 23...
Rxe4 {[%clk 0:01:44.1]} 24. Nc3 {[%clk 0:02:12.7]} 24... Re6 {[%clk 0:01:43.9]}
25. Rab1 {[%clk 0:02:05.8]} 25... Ra8 {[%clk 0:01:25.8]} 26. Kg2 {[%clk
0:02:00.2]} 26... g6 {[%clk 0:01:24.5]} 27. Kf3 {[%clk 0:01:57.6]} 27... Kf8
{[%clk 0:01:24.1]} 28. Rb2 {[%clk 0:01:47.2]} 28... Rf6 {[%clk 0:01:22.9]} 29.
Ke2 {[%clk 0:01:44]} 29... Re6 {[%clk 0:01:19.5]} 30. Rgb1 {[%clk 0:01:42.2]}
30... Ke7 {[%clk 0:01:18]} 31. b5 {[%clk 0:01:36.2]} 31... axb5 {[%clk
0:01:16.7]} 32. axb5 {[%clk 0:01:36.8]} 32... Ra3 {[%clk 0:01:16.4]} 33. Kd2
{[%clk 0:01:34.7]} 33... g5 {[%clk 0:01:14]} 34. fxg5 {[%clk 0:01:33]} 34...
hxg5 {[%clk 0:01:13.2]} 35. bxc6 {[%clk 0:01:32.9]} 35... bxc6 {[%clk
0:01:12.3]} 36. Rb7 {[%clk 0:01:30.8]} 36... Kd7 {[%clk 0:01:10]} 37. R1b3
{[%clk 0:01:21]} 37... Ra5 {[%clk 0:01:03.3]} 38. R3b4 {[%clk 0:01:05.8]} 38...
Rf6 {[%clk 0:01:03]} 39. Ke2 {[%clk 0:01:05.9]} 39... Ra1 {[%clk 0:01:02.9]} 40.
R4b6 {[%clk 0:01:01.4]} 40... Kc8 {[%clk 0:00:45.1]} 41. Rxc7+ {[%clk
0:00:52.2]} 41... Kxc7 {[%clk 0:00:43.1]} 42. Nxd5+ {[%clk 0:00:52.7]} 42...
cxd5 {[%clk 0:00:42.6]} 43. Rxf6 {[%clk 0:00:53.2]} 43... Rh1 {[%clk 0:00:41.4]}
44. Rxf7+ {[%clk 0:00:52.7]} 44... Kd6 {[%clk 0:00:41.5]} 45. Rg7 {[%clk
0:00:44.3]} 45... Rxh2 {[%clk 0:00:39.1]} 46. Rxg5 {[%clk 0:00:44.6]} 46... Rh3
{[%clk 0:00:37.8]} 47. Rg6+ {[%clk 0:00:44.1]} 47... Kd7 {[%clk 0:00:37.4]} 48.
f3 {[%clk 0:00:44.4]} 48... Rh2+ {[%clk 0:00:36.8]} 49. Kd3 {[%clk 0:00:44.6]}
49... Rf2 {[%clk 0:00:36.6]} 50. Rf6 {[%clk 0:00:43.4]} 50... Ke7 {[%clk
0:00:36.6]} 51. Rf5 {[%clk 0:00:42.3]} 51... Ke6 {[%clk 0:00:36.7]} 52. Re5+
{[%clk 0:00:42.2]} 52... Kd6 {[%clk 0:00:36.5]} 53. f4 {[%clk 0:00:38.1]} 53...
Ra2 {[%clk 0:00:35.7]} 54. Rh5 {[%clk 0:00:36.4]} 54... Rf2 {[%clk 0:00:35.2]}
55. Rh6+ {[%clk 0:00:35.8]} 55... Kd7 {[%clk 0:00:35.2]} 56. Ra6 {[%clk
0:00:36]} 56... Ke7 {[%clk 0:00:33.6]} 57. Rh6 {[%clk 0:00:32.1]} 57... Kd7
{[%clk 0:00:33.3]} 58. Rh5 {[%clk 0:00:32.1]} 58... Kd6 {[%clk 0:00:32.3]} 59.
Re5 {[%clk 0:00:31.9]} 59... Kc6 {[%clk 0:00:30.9]} 60. f5 {[%clk 0:00:31.5]}
60... Kd6 {[%clk 0:00:30.4]} 61. Kc3 {[%clk 0:00:31.3]} 61... Rf1 {[%clk
0:00:27.8]} 62. Kd2 {[%clk 0:00:30.8]} 62... Rf2+ {[%clk 0:00:27.1]} 63. Ke1
{[%clk 0:00:30.9]} 63... Rh2 {[%clk 0:00:27]} 64. Kf1 {[%clk 0:00:30.3]} 64...
Rd2 {[%clk 0:00:26]} 65. f6 {[%clk 0:00:29.4]} 65... Rd1+ {[%clk 0:00:18.6]} 66.
Ke2 {[%clk 0:00:29.2]} 66... Rh1 {[%clk 0:00:18.3]} 67. f7 {[%clk 0:00:28.7]}
67... Rh2+ {[%clk 0:00:17.7]} 68. Ke1 {[%clk 0:00:27.1]} 68... Rh1+ {[%clk
0:00:17.5]} 69. Kf2 {[%clk 0:00:27.3]} 69... Rh8 {[%clk 0:00:15.6]} 70. Re8
{[%clk 0:00:26.5]} 1-0

[Event "*** Titled Tuesday Blitz"]
[Site "Chess.com"]
[Date "2020.04.14"]
[Round "7"]
[White "rasmussvane"]
[Black "Mischuk_D"]
[Result "1-0"]
[WhiteElo "2877"]
[BlackElo "2702"]
[TimeControl "180+1"]
[EndTime "11:15:20 PDT"]
[Termination "rasmussvane won on time"]

1. Nf3 {[%clk 0:03:00.9]} 1... Nf6 {[%clk 0:02:59.7]} 2. c4 {[%clk 0:03:00.3]}
2... g6 {[%clk 0:02:59.7]} 3. Nc3 {[%clk 0:03:00.5]} 3... d5 {[%clk 0:02:59.7]}
4. cxd5 {[%clk 0:03:00.3]} 4... Nxd5 {[%clk 0:03:00.6]} 5. h4 {[%clk 0:03:00.9]}
5... h6 {[%clk 0:03:00.3]} 6. e4 {[%clk 0:03:01.5]} 6... Nxc3 {[%clk 0:03:00.3]}
7. dxc3 {[%clk 0:03:02.4]} 7... Qxd1+ {[%clk 0:03:00.5]} 8. Kxd1 {[%clk
0:03:03.3]} 8... Nd7 {[%clk 0:03:00.2]} 9. Bf4 {[%clk 0:03:03]} 9... c6 {[%clk
0:02:58.1]} 10. Kc2 {[%clk 0:03:00.3]} 10... Nc5 {[%clk 0:02:58.3]} 11. Nd2
{[%clk 0:02:59.7]} 11... a5 {[%clk 0:02:56.2]} 12. a4 {[%clk 0:02:54.9]} 12...
Be6 {[%clk 0:02:55.4]} 13. Be3 {[%clk 0:02:53.5]} 13... Nd7 {[%clk 0:02:50.3]}
14. Bc4 {[%clk 0:02:39.1]} 14... Bxc4 {[%clk 0:02:44.5]} 15. Nxc4 {[%clk
0:02:40]} 15... Bg7 {[%clk 0:02:44.6]} 16. Rhd1 {[%clk 0:02:40.5]} 16... Ne5
{[%clk 0:02:37.7]} 17. Nb6 {[%clk 0:02:28.7]} 17... Ra6 {[%clk 0:02:28.6]} 18.
Bd4 {[%clk 0:02:27.9]} 18... O-O {[%clk 0:02:27.6]} 19. Bxe5 {[%clk 0:02:26.2]}
19... Rxb6 {[%clk 0:02:19.7]} 20. Bxg7 {[%clk 0:02:15.6]} 20... Kxg7 {[%clk
0:02:19.5]} 21. Rd7 {[%clk 0:02:16.1]} 21... Kf6 {[%clk 0:02:17.2]} 22. Rad1
{[%clk 0:02:11.6]} 22... Rc8 {[%clk 0:02:13]} 23. f4 {[%clk 0:02:11.4]} 23...
Ke6 {[%clk 0:02:12.2]} 24. g4 {[%clk 0:02:08.7]} 24... f6 {[%clk 0:02:04.5]} 25.
f5+ {[%clk 0:01:33.7]} 25... gxf5 {[%clk 0:02:04.2]} 26. gxf5+ {[%clk
0:01:34.6]} 26... Kf7 {[%clk 0:02:04.5]} 27. Rg1 {[%clk 0:01:34.9]} 27... h5
{[%clk 0:01:50]} 28. Rg6 {[%clk 0:01:27.2]} 28... Rh8 {[%clk 0:01:47.9]} 29. Rg2
{[%clk 0:01:17.2]} 29... Rc8 {[%clk 0:01:35.4]} 30. Kd3 {[%clk 0:01:04.7]} 30...
Ke8 {[%clk 0:01:23.6]} 31. Rd4 {[%clk 0:01:04]} 31... Kf7 {[%clk 0:01:24.2]} 32.
Kc4 {[%clk 0:01:02.4]} 32... Ra6 {[%clk 0:01:22.9]} 33. Rd7 {[%clk 0:00:53.4]}
33... Rb6 {[%clk 0:01:11.6]} 34. Kc5 {[%clk 0:00:49.3]} 34... Rb3 {[%clk
0:01:11.7]} 35. Kc4 {[%clk 0:00:47.4]} 35... Rb6 {[%clk 0:01:11.4]} 36. Rd3
{[%clk 0:00:43.2]} 36... Rh8 {[%clk 0:00:53.1]} 37. Kc5 {[%clk 0:00:38.1]} 37...
Rb3 {[%clk 0:00:50.6]} 38. Kc4 {[%clk 0:00:34.7]} 38... Rb6 {[%clk 0:00:50.6]}
39. Rdg3 {[%clk 0:00:35.1]} 39... Rh7 {[%clk 0:00:48.6]} 40. Rg8 {[%clk
0:00:26.4]} 40... Rxb2 {[%clk 0:00:33]} 41. Rxb2 {[%clk 0:00:27.3]} 41... Kxg8
{[%clk 0:00:32.6]} 42. Rxb7 {[%clk 0:00:27.7]} 42... Rg7 {[%clk 0:00:33.2]} 43.
Kc5 {[%clk 0:00:26.4]} 43... Kf7 {[%clk 0:00:33.2]} 44. Kxc6 {[%clk 0:00:17.3]}
44... Rg4 {[%clk 0:00:33.4]} 45. Kd5 {[%clk 0:00:17.6]} 45... Rxh4 {[%clk
0:00:33.4]} 46. c4 {[%clk 0:00:16.2]} 46... Rh1 {[%clk 0:00:33.6]} 47. c5 {[%clk
0:00:14.3]} 47... Rd1+ {[%clk 0:00:33.6]} 48. Kc6 {[%clk 0:00:13.4]} 48... h4
{[%clk 0:00:32.4]} 49. Rb3 {[%clk 0:00:13.1]} 49... Rd4 {[%clk 0:00:30.9]} 50.
Kb5 {[%clk 0:00:09.6]} 50... Ke8 {[%clk 0:00:29.3]} 51. Kxa5 {[%clk 0:00:08.7]}
51... Kd7 {[%clk 0:00:29.1]} 52. Kb5 {[%clk 0:00:08.4]} 52... Rxe4 {[%clk
0:00:28.4]} 53. a5 {[%clk 0:00:08.6]} 53... Kc7 {[%clk 0:00:28.2]} 54. a6 {[%clk
0:00:09]} 54... Rg4 {[%clk 0:00:21]} 55. Rd3 {[%clk 0:00:07.5]} 55... Rg8 {[%clk
0:00:20.4]} 56. c6 {[%clk 0:00:06]} 56... Kb8 {[%clk 0:00:15.6]} 57. Kb6 {[%clk
0:00:05.8]} 57... Rh8 {[%clk 0:00:15.4]} 58. c7+ {[%clk 0:00:05.6]} 58... Kc8
{[%clk 0:00:15.8]} 59. a7 {[%clk 0:00:04.5]} 1-0

[Event "*** Titled Tuesday Blitz"]
[Site "Chess.com"]
[Date "2020.04.14"]
[Round "7"]
[White "RaphCamora"]
[Black "Artem_Sadovsky"]
[Result "0-1"]
[WhiteElo "2426"]
[BlackElo "2607"]
[TimeControl "180+1"]
[EndTime "11:15:20 PDT"]
[Termination "Artem_Sadovsky won on time"]

1. e4 {[%clk 0:03:00.9]} 1... g6 {[%clk 0:02:59.1]} 2. d4 {[%clk 0:03:00]} 2...
Bg7 {[%clk 0:03:00]} 3. Nf3 {[%clk 0:03:00.4]} 3... d6 {[%clk 0:03:00.4]} 4. Bc4
{[%clk 0:03:00.4]} 4... Nf6 {[%clk 0:02:57.1]} 5. Qe2 {[%clk 0:02:59.9]} 5...
O-O {[%clk 0:02:55.9]} 6. O-O {[%clk 0:02:58.8]} 6... d5 {[%clk 0:02:48.7]} 7.
exd5 {[%clk 0:02:56.6]} 7... Nxd5 {[%clk 0:02:49.6]} 8. h3 {[%clk 0:02:51.3]}
8... c6 {[%clk 0:02:49.7]} 9. Bb3 {[%clk 0:02:50.9]} 9... Na6 {[%clk 0:02:39.1]}
10. c4 {[%clk 0:02:50.3]} 10... Nb6 {[%clk 0:02:29.9]} 11. Nc3 {[%clk
0:02:48.9]} 11... Bf5 {[%clk 0:02:26.4]} 12. Bg5 {[%clk 0:02:46]} 12... Re8
{[%clk 0:02:24.4]} 13. Rad1 {[%clk 0:02:44.7]} 13... Qc7 {[%clk 0:02:19.8]} 14.
Bh4 {[%clk 0:02:43.5]} 14... Rad8 {[%clk 0:02:09.3]} 15. Bg3 {[%clk 0:02:43.1]}
15... Qc8 {[%clk 0:02:08.4]} 16. Rfe1 {[%clk 0:02:36.3]} 16... h6 {[%clk
0:01:37.5]} 17. Be5 {[%clk 0:02:30.7]} 17... f6 {[%clk 0:01:33.3]} 18. Bg3
{[%clk 0:02:23.4]} 18... g5 {[%clk 0:01:30.1]} 19. a4 {[%clk 0:02:14.8]} 19...
Nb4 {[%clk 0:01:27.1]} 20. a5 {[%clk 0:02:14.1]} 20... Na8 {[%clk 0:01:27.3]}
21. d5 {[%clk 0:01:31.3]} 21... c5 {[%clk 0:01:26.9]} 22. Ba4 {[%clk 0:01:26.4]}
22... Bd7 {[%clk 0:01:19.9]} 23. Bxd7 {[%clk 0:01:25.1]} 23... Qxd7 {[%clk
0:01:20.8]} 24. Ne4 {[%clk 0:01:15.5]} 24... b6 {[%clk 0:01:06.1]} 25. axb6
{[%clk 0:01:08.8]} 25... axb6 {[%clk 0:01:07]} 26. Nh2 {[%clk 0:01:01.4]} 26...
f5 {[%clk 0:01:03.3]} 27. Nc3 {[%clk 0:00:57.3]} 27... f4 {[%clk 0:01:02.7]} 28.
Bxf4 {[%clk 0:00:52.3]} 28... gxf4 {[%clk 0:01:02.2]} 29. Qe4 {[%clk 0:00:45.6]}
29... Nc7 {[%clk 0:00:50.1]} 30. Qxf4 {[%clk 0:00:43.7]} 30... Rf8 {[%clk
0:00:47.8]} 31. Qg3 {[%clk 0:00:41.6]} 31... Qd6 {[%clk 0:00:43.8]} 32. Qe3
{[%clk 0:00:29.2]} 32... Bd4 {[%clk 0:00:39.7]} 33. Rxd4 {[%clk 0:00:19.7]}
33... cxd4 {[%clk 0:00:40.6]} 34. Qxd4 {[%clk 0:00:20.6]} 34... Qf4 {[%clk
0:00:40.6]} 35. Qxf4 {[%clk 0:00:20.2]} 35... Rxf4 {[%clk 0:00:41.5]} 36. Rxe7
{[%clk 0:00:20.7]} 36... Rxc4 {[%clk 0:00:39.9]} 37. Ng4 {[%clk 0:00:19.6]}
37... Ncxd5 {[%clk 0:00:40.3]} 38. Nxh6+ {[%clk 0:00:10.7]} 38... Kf8 {[%clk
0:00:40.5]} 39. Rf7+ {[%clk 0:00:11]} 39... Ke8 {[%clk 0:00:40.6]} 40. Nb5
{[%clk 0:00:11.7]} 40... Rh4 {[%clk 0:00:37.5]} 41. Rh7 {[%clk 0:00:08.5]} 41...
Rd7 {[%clk 0:00:32.7]} 42. Rh8+ {[%clk 0:00:07.5]} 42... Ke7 {[%clk 0:00:33.2]}
43. Nf5+ {[%clk 0:00:07.8]} 43... Kf6 {[%clk 0:00:33.7]} 44. Nxh4 {[%clk
0:00:08.4]} 44... Nf4 {[%clk 0:00:34.1]} 45. g3 {[%clk 0:00:07.5]} 45... Nxh3+
{[%clk 0:00:31.9]} 46. Kg2 {[%clk 0:00:07.6]} 46... Ng5 {[%clk 0:00:32.5]} 47.
Rh6+ {[%clk 0:00:07.8]} 47... Kf7 {[%clk 0:00:32.3]} 48. Rg6 {[%clk 0:00:07.4]}
48... Rd2 {[%clk 0:00:32.9]} 49. Rxg5 {[%clk 0:00:07]} 49... Nd3 {[%clk
0:00:33.8]} 50. Rf5+ {[%clk 0:00:07.4]} 50... Ke6 {[%clk 0:00:34.7]} 51. Nd4+
{[%clk 0:00:07.4]} 51... Kd6 {[%clk 0:00:33.4]} 52. Ndf3 {[%clk 0:00:07.6]}
52... Rxb2 {[%clk 0:00:33.7]} 53. Rf6+ {[%clk 0:00:07.1]} 53... Kc5 {[%clk
0:00:33.3]} 54. Rf5+ {[%clk 0:00:07.1]} 54... Kd6 {[%clk 0:00:32.9]} 55. Rf6+
{[%clk 0:00:07]} 55... Kc5 {[%clk 0:00:32.2]} 56. Nf5 {[%clk 0:00:07.2]} 56...
Rxf2+ {[%clk 0:00:31.8]} 57. Kh3 {[%clk 0:00:07.7]} 57... Rxf3 {[%clk
0:00:32.7]} 58. Kg4 {[%clk 0:00:07.5]} 58... Ne5+ {[%clk 0:00:32.9]} 59. Kg5
{[%clk 0:00:06.9]} 59... b5 {[%clk 0:00:33.8]} 60. Rf8 {[%clk 0:00:06.4]} 60...
b4 {[%clk 0:00:32.3]} 61. Rc8+ {[%clk 0:00:06.5]} 61... Kb6 {[%clk 0:00:32.6]}
62. Nd4 {[%clk 0:00:05.9]} 62... Nf7+ {[%clk 0:00:28.4]} 63. Kg4 {[%clk
0:00:05.5]} 63... Ne5+ {[%clk 0:00:28.9]} 64. Kg5 {[%clk 0:00:06]} 64... Rd3
{[%clk 0:00:27.5]} 65. Nf5 {[%clk 0:00:04.5]} 65... b3 {[%clk 0:00:27]} 66. Kf4
{[%clk 0:00:04.5]} 66... Nc6 {[%clk 0:00:26.2]} 0-1

[Event "*** Titled Tuesday Blitz"]
[Site "Chess.com"]
[Date "2020.04.14"]
[Round "7"]
[White "Semetey"]
[Black "BIG_Pirate"]
[Result "1-0"]
[WhiteElo "2553"]
[BlackElo "2381"]
[TimeControl "180+1"]
[EndTime "11:15:20 PDT"]
[Termination "Semetey won on time"]

1. g3 {[%clk 0:03:00.9]} 1... d5 {[%clk 0:02:59.6]} 2. Bg2 {[%clk 0:03:01.8]}
2... c6 {[%clk 0:02:59.9]} 3. d3 {[%clk 0:03:02]} 3... Nf6 {[%clk 0:03:00.4]} 4.
Nd2 {[%clk 0:03:02.9]} 4... Bf5 {[%clk 0:03:00.1]} 5. e4 {[%clk 0:03:02.9]} 5...
dxe4 {[%clk 0:02:59.9]} 6. dxe4 {[%clk 0:03:02.9]} 6... Bg6 {[%clk 0:03:00]} 7.
Qe2 {[%clk 0:03:02.3]} 7... e6 {[%clk 0:02:55.3]} 8. Ngf3 {[%clk 0:03:02.3]}
8... Nbd7 {[%clk 0:02:55]} 9. O-O {[%clk 0:03:01.4]} 9... a5 {[%clk 0:02:51]}
10. a4 {[%clk 0:03:00.7]} 10... Be7 {[%clk 0:02:47.5]} 11. h3 {[%clk 0:02:57.2]}
11... Nc5 {[%clk 0:02:45.8]} 12. Nh4 {[%clk 0:02:56.8]} 12... Nfd7 {[%clk
0:02:42.2]} 13. Nxg6 {[%clk 0:02:53.9]} 13... hxg6 {[%clk 0:02:43.1]} 14. f4
{[%clk 0:02:48.9]} 14... e5 {[%clk 0:02:40.7]} 15. f5 {[%clk 0:02:38.3]} 15...
gxf5 {[%clk 0:02:24.2]} 16. exf5 {[%clk 0:02:34.7]} 16... f6 {[%clk 0:02:16.3]}
17. Qg4 {[%clk 0:02:26.7]} 17... Kf8 {[%clk 0:01:44.6]} 18. Nf3 {[%clk
0:02:23.7]} 18... Qb6 {[%clk 0:01:31.2]} 19. Kh1 {[%clk 0:02:22.4]} 19... Qb4
{[%clk 0:01:29]} 20. Qxb4 {[%clk 0:02:03.8]} 20... axb4 {[%clk 0:01:28.6]} 21.
b3 {[%clk 0:02:00.8]} 21... Nb6 {[%clk 0:01:24]} 22. Nh4 {[%clk 0:01:58.1]}
22... Kf7 {[%clk 0:01:15.9]} 23. Ng6 {[%clk 0:01:57]} 23... Rhd8 {[%clk
0:01:15.7]} 24. Be3 {[%clk 0:01:57.1]} 24... Nd5 {[%clk 0:01:08.4]} 25. Bg1
{[%clk 0:01:56.7]} 25... Bd6 {[%clk 0:00:57.9]} 26. Rfd1 {[%clk 0:01:52.7]}
26... Nc3 {[%clk 0:00:45.1]} 27. Rxd6 {[%clk 0:01:52.3]} 27... Rxd6 {[%clk
0:00:46]} 28. Bxc5 {[%clk 0:01:52]} 28... Rd2 {[%clk 0:00:46]} 29. Bxb4 {[%clk
0:01:49.5]} 29... Rxc2 {[%clk 0:00:46.1]} 30. Bf1 {[%clk 0:01:20.8]} 30... Nd5
{[%clk 0:00:44.5]} 31. Be1 {[%clk 0:01:12.3]} 31... Rb2 {[%clk 0:00:28.7]} 32.
Bc4 {[%clk 0:01:10.9]} 32... b5 {[%clk 0:00:25.2]} 33. Bxd5+ {[%clk 0:01:03.9]}
33... cxd5 {[%clk 0:00:25]} 34. a5 {[%clk 0:01:04.2]} 34... Rxb3 {[%clk
0:00:21.5]} 35. Rc1 {[%clk 0:01:03.3]} 35... b4 {[%clk 0:00:19.5]} 36. Rc7+
{[%clk 0:00:47.1]} 36... Ke8 {[%clk 0:00:17.5]} 37. Bf2 {[%clk 0:00:41.1]} 37...
Rxa5 {[%clk 0:00:15.7]} 38. Re7+ {[%clk 0:00:40.9]} 38... Kd8 {[%clk 0:00:12.7]}
39. Bb6+ {[%clk 0:00:41.8]} 39... Kc8 {[%clk 0:00:11.8]} 40. Bxa5 {[%clk
0:00:42.7]} 40... Rb1+ {[%clk 0:00:10.8]} 41. Kg2 {[%clk 0:00:43]} 41... b3
{[%clk 0:00:11.7]} 42. Rc7+ {[%clk 0:00:41.3]} 42... Kb8 {[%clk 0:00:11.8]} 43.
Rc5 {[%clk 0:00:41.6]} 43... Ka7 {[%clk 0:00:09.1]} 44. Bc3 {[%clk 0:00:35.7]}
44... Ka6 {[%clk 0:00:09.2]} 45. Rxd5 {[%clk 0:00:33.2]} 45... Rc1 {[%clk
0:00:06.8]} 46. Rc5 {[%clk 0:00:17.1]} 46... Rc2+ {[%clk 0:00:04.7]} 47. Kf3
{[%clk 0:00:16.5]} 47... Kb6 {[%clk 0:00:05.2]} 48. Rc8 {[%clk 0:00:16.4]} 48...
Kb7 {[%clk 0:00:05.1]} 49. Rc4 {[%clk 0:00:15.7]} 49... Ka6 {[%clk 0:00:02.7]}
50. Ne7 {[%clk 0:00:13.7]} 50... b2 {[%clk 0:00:01.5]} 51. Bxb2 {[%clk
0:00:13.6]} 1-0

[Event "*** Titled Tuesday Blitz"]
[Site "Chess.com"]
[Date "2020.04.14"]
[Round "7"]
[White "Egorov_Pavel"]
[Black "KacperPolOK"]
[Result "0-1"]
[WhiteElo "2380"]
[BlackElo "2258"]
[TimeControl "180+1"]
[EndTime "11:15:21 PDT"]
[Termination "KacperPolOK won on time"]

1. d4 {[%clk 0:03:00.6]} 1... e6 {[%clk 0:02:59.1]} 2. c4 {[%clk 0:03:01.1]}
2... f5 {[%clk 0:02:59.4]} 3. Nc3 {[%clk 0:03:01.5]} 3... Nf6 {[%clk 0:02:59.5]}
4. Nf3 {[%clk 0:03:02]} 4... Bb4 {[%clk 0:02:58.9]} 5. g3 {[%clk 0:03:01.7]}
5... b6 {[%clk 0:02:58.3]} 6. Bg2 {[%clk 0:03:02.3]} 6... Bb7 {[%clk 0:02:58.8]}
7. O-O {[%clk 0:03:03]} 7... Bxc3 {[%clk 0:02:59.3]} 8. bxc3 {[%clk 0:03:03.9]}
8... O-O {[%clk 0:02:59.6]} 9. Bg5 {[%clk 0:03:00.8]} 9... d6 {[%clk 0:02:57.8]}
10. Ne1 {[%clk 0:02:57.2]} 10... Bxg2 {[%clk 0:02:57.1]} 11. Nxg2 {[%clk
0:02:58.1]} 11... Nbd7 {[%clk 0:02:58]} 12. Nf4 {[%clk 0:02:52.1]} 12... Qe7
{[%clk 0:02:54.2]} 13. d5 {[%clk 0:02:50.2]} 13... e5 {[%clk 0:02:50.1]} 14. Ne6
{[%clk 0:02:49.3]} 14... Rfc8 {[%clk 0:02:50.5]} 15. Qc2 {[%clk 0:02:43.5]}
15... h6 {[%clk 0:02:30.5]} 16. Bxf6 {[%clk 0:02:39.9]} 16... Qxf6 {[%clk
0:02:30.4]} 17. e4 {[%clk 0:02:37.8]} 17... fxe4 {[%clk 0:02:19.9]} 18. Qxe4
{[%clk 0:02:35.1]} 18... Nf8 {[%clk 0:02:19.9]} 19. Nxf8 {[%clk 0:01:57.5]}
19... Rxf8 {[%clk 0:02:19.2]} 20. f4 {[%clk 0:01:50.8]} 20... Rae8 {[%clk
0:02:06.9]} 21. f5 {[%clk 0:01:46.7]} 21... a5 {[%clk 0:01:55]} 22. h4 {[%clk
0:01:45.6]} 22... h5 {[%clk 0:01:50.3]} 23. Rae1 {[%clk 0:01:35.8]} 23... Qh6
{[%clk 0:01:49.6]} 24. Re2 {[%clk 0:01:27.7]} 24... Rf6 {[%clk 0:01:48.5]} 25.
g4 {[%clk 0:01:23.3]} 25... hxg4 {[%clk 0:01:47.4]} 26. Qxg4 {[%clk 0:01:24.2]}
26... Ref8 {[%clk 0:01:47.5]} 27. h5 {[%clk 0:01:05.1]} 27... Kf7 {[%clk
0:01:38.6]} 28. Qf3 {[%clk 0:00:32.4]} 28... Ke7 {[%clk 0:01:37.2]} 29. Rg2
{[%clk 0:00:30.9]} 29... R8f7 {[%clk 0:01:25.7]} 30. Qh3 {[%clk 0:00:23.5]}
30... Qh7 {[%clk 0:01:23.5]} 31. Rg5 {[%clk 0:00:21.4]} 31... Kd7 {[%clk
0:01:15.4]} 32. Qg4 {[%clk 0:00:21]} 32... Kc8 {[%clk 0:01:09.9]} 33. Rg6 {[%clk
0:00:20.5]} 33... Kb7 {[%clk 0:01:09.5]} 34. Qg5 {[%clk 0:00:18.7]} 34... Qh8
{[%clk 0:01:06.9]} 35. h6 {[%clk 0:00:18.6]} 35... gxh6 {[%clk 0:01:03.3]} 36.
Qh5 {[%clk 0:00:19.1]} 36... Rg7 {[%clk 0:00:54.5]} 37. Rf2 {[%clk 0:00:09.1]}
37... Qg8 {[%clk 0:00:45.7]} 38. Rfg2 {[%clk 0:00:09.6]} 38... Rgxg6 {[%clk
0:00:34.6]} 39. Rxg6 {[%clk 0:00:10.5]} 39... Qf8 {[%clk 0:00:34.9]} 40. Rxf6
{[%clk 0:00:06]} 40... Qxf6 {[%clk 0:00:34.5]} 41. Qg6 {[%clk 0:00:06.1]} 41...
Qh4 {[%clk 0:00:34.6]} 42. f6 {[%clk 0:00:06.2]} 42... Qe1+ {[%clk 0:00:30.6]}
43. Kh2 {[%clk 0:00:06.1]} 43... Qf2+ {[%clk 0:00:29.9]} 44. Kh3 {[%clk
0:00:06.2]} 44... e4 {[%clk 0:00:29.8]} 45. f7 {[%clk 0:00:05.8]} 45... e3
{[%clk 0:00:30]} 46. Qg8 {[%clk 0:00:04.2]} 46... e2 {[%clk 0:00:28.6]} 47. f8=Q
{[%clk 0:00:04.8]} 47... Qxf8 {[%clk 0:00:27.9]} 48. Qxf8 {[%clk 0:00:05.7]}
48... e1=Q {[%clk 0:00:28.4]} 49. Qf3 {[%clk 0:00:04.4]} 49... Qe5 {[%clk
0:00:27.7]} 50. Kg4 {[%clk 0:00:02.7]} 50... Qg5+ {[%clk 0:00:27.5]} 51. Kh3
{[%clk 0:00:03.1]} 51... Qg6 {[%clk 0:00:27.9]} 52. Qe3 {[%clk 0:00:01.1]} 52...
Qf5+ {[%clk 0:00:23.8]} 53. Kh4 {[%clk 0:00:01.4]} 53... h5 {[%clk 0:00:22.6]}
54. Qg5 {[%clk 0:00:01.1]} 54... Qe4+ {[%clk 0:00:22.3]} 55. Kxh5 {[%clk
0:00:01.7]} 55... Qxc4 {[%clk 0:00:22.2]} 56. Qg8 {[%clk 0:00:02.1]} 56... Qxc3
{[%clk 0:00:21.1]} 57. Qe6 {[%clk 0:00:01.1]} 57... Qe5+ {[%clk 0:00:20.5]} 0-1